[Event "GrandPrix_30.05"]
[Site "Chess.com"]
[Date "2020.05.30"]
[Round "8"]
[White "SergeyVashchilov"]
[Black "OhanyanEminChess"]
[Result "0-1"]
[WhiteElo "2018"]
[BlackElo "2065"]
[TimeControl "600+2"]
[EndTime "11:56:50 PDT"]
[Termination "OhanyanEminChess won by resignation"]

1. e4 {[%clk 0:10:01.9]} 1... e5 {[%clk 0:09:55.3]} 2. Nf3 {[%clk 0:10:02]} 2...
Nc6 {[%clk 0:09:55.5]} 3. d4 {[%clk 0:10:03.2]} 3... exd4 {[%clk 0:09:56.1]} 4.
Nxd4 {[%clk 0:10:05.1]} 4... Nf6 {[%clk 0:09:57.3]} 5. Nc3 {[%clk 0:10:06.3]}
5... Bb4 {[%clk 0:09:57.9]} 6. Nxc6 {[%clk 0:10:07.5]} 6... bxc6 {[%clk
0:09:59.8]} 7. Bd3 {[%clk 0:10:06.4]} 7... d5 {[%clk 0:09:59.1]} 8. exd5 {[%clk
0:10:07.4]} 8... cxd5 {[%clk 0:10:01]} 9. O-O {[%clk 0:10:08.3]} 9... O-O {[%clk
0:09:39.6]} 10. h3 {[%clk 0:10:09.1]} 10... h6 {[%clk 0:09:37.2]} 11. Qf3 {[%clk
0:10:10.1]} 11... Be6 {[%clk 0:09:37.7]} 12. Bf4 {[%clk 0:10:11.1]} 12... c5
{[%clk 0:09:38.1]} 13. Rad1 {[%clk 0:10:10.7]} 13... Qe7 {[%clk 0:09:17.4]} 14.
Nb5 {[%clk 0:08:43.9]} 14... Rfd8 {[%clk 0:08:59.2]} 15. c3 {[%clk 0:08:16.9]}
15... Ba5 {[%clk 0:08:56.5]} 16. Rfe1 {[%clk 0:07:56.5]} 16... a6 {[%clk
0:08:43.6]} 17. Na3 {[%clk 0:07:47.2]} 17... Bc7 {[%clk 0:08:43.5]} 18. Bc1
{[%clk 0:07:26.3]} 18... Qd6 {[%clk 0:08:38.2]} 19. g4 {[%clk 0:06:54.7]} 19...
h5 {[%clk 0:08:03.9]} 20. Rxe6 {[%clk 0:06:29.4]} 20... fxe6 {[%clk 0:07:40.2]}
21. g5 {[%clk 0:06:26.6]} 21... Ne4 {[%clk 0:07:08]} 22. Bxe4 {[%clk 0:06:02.1]}
22... Qh2+ {[%clk 0:07:08.4]} 23. Kf1 {[%clk 0:06:03.5]} 23... dxe4 {[%clk
0:07:09.5]} 24. Rxd8+ {[%clk 0:04:51.5]} 24... Rxd8 {[%clk 0:07:11.4]} 25. Qxe4
{[%clk 0:04:52.8]} 25... Rd1+ {[%clk 0:06:29.7]} 26. Ke2 {[%clk 0:04:52.6]}
26... Rxc1 {[%clk 0:06:27.3]} 27. Qxe6+ {[%clk 0:04:47.8]} 27... Kf8 {[%clk
0:06:28]} 28. Qf5+ {[%clk 0:04:32.9]} 28... Ke7 {[%clk 0:06:25.5]} 29. Nc4
{[%clk 0:04:14.4]} 29... Qh1 {[%clk 0:05:09.6]} 30. Qxc5+ {[%clk 0:04:06.6]}
30... Kd7 {[%clk 0:05:09.6]} 31. Qf5+ {[%clk 0:03:08.7]} 31... Kc6 {[%clk
0:05:03.8]} 32. Ne3 {[%clk 0:02:55.7]} 32... Kb7 {[%clk 0:03:29.9]} 33. Qf7
{[%clk 0:02:29.9]} 33... Qe4 {[%clk 0:03:19.8]} 34. Kd2 {[%clk 0:01:38.6]} 34...
Rb1 {[%clk 0:03:11]} 35. Qb3+ {[%clk 0:01:11.3]} 35... Ka7 {[%clk 0:03:00.9]}
36. a4 {[%clk 0:01:05.1]} 36... Qb7 {[%clk 0:02:47.3]} 37. Qxb7+ {[%clk
0:00:56.5]} 37... Kxb7 {[%clk 0:02:49.2]} 38. Nf5 {[%clk 0:00:37.7]} 38... g6
{[%clk 0:02:37]} 39. Ne7 {[%clk 0:00:30.2]} 39... Rxb2+ {[%clk 0:02:35.7]} 40.
Ke3 {[%clk 0:00:30.3]} 40... Bb6+ {[%clk 0:02:33.5]} 41. Ke4 {[%clk 0:00:31]}
41... Re2+ {[%clk 0:02:34.1]} 0-1

[Event "GrandPrix_30.05"]
[Site "Chess.com"]
[Date "2020.05.30"]
[Round "8"]
[White "Ave_Mariia"]
[Black "Keks2017"]
[Result "1/2-1/2"]
[WhiteElo "2201"]
[BlackElo "2289"]
[TimeControl "600+2"]
[EndTime "11:56:54 PDT"]
[Termination "Game drawn by stalemate"]

1. c4 {[%clk 0:10:01.9]} 1... g6 {[%clk 0:09:59.7]} 2. Nc3 {[%clk 0:10:00.3]}
2... Bg7 {[%clk 0:10:00.4]} 3. g3 {[%clk 0:10:00.3]} 3... Nf6 {[%clk 0:10:00.7]}
4. Bg2 {[%clk 0:10:01.6]} 4... O-O {[%clk 0:10:01.5]} 5. Nf3 {[%clk 0:10:02.4]}
5... d6 {[%clk 0:10:02.1]} 6. O-O {[%clk 0:10:03.6]} 6... e5 {[%clk 0:10:02.6]}
7. d3 {[%clk 0:10:03.9]} 7... h6 {[%clk 0:10:03.3]} 8. Rb1 {[%clk 0:10:05]} 8...
Nc6 {[%clk 0:10:01.4]} 9. b4 {[%clk 0:10:05.5]} 9... Be6 {[%clk 0:10:01.5]} 10.
b5 {[%clk 0:10:00.7]} 10... Ne7 {[%clk 0:10:01.4]} 11. Bb2 {[%clk 0:09:57.5]}
11... Qd7 {[%clk 0:10:01.6]} 12. Nd2 {[%clk 0:09:19.4]} 12... Rab8 {[%clk
0:09:55.9]} 13. Qa4 {[%clk 0:08:39.2]} 13... Nc8 {[%clk 0:09:55.2]} 14. Nd5
{[%clk 0:08:29.6]} 14... Nxd5 {[%clk 0:09:55.3]} 15. cxd5 {[%clk 0:08:28.9]}
15... Bh3 {[%clk 0:09:54.4]} 16. Qb3 {[%clk 0:08:04.3]} 16... Bxg2 {[%clk
0:09:51.3]} 17. Kxg2 {[%clk 0:08:06.2]} 17... h5 {[%clk 0:09:18.9]} 18. f4
{[%clk 0:07:40.9]} 18... Ne7 {[%clk 0:09:10]} 19. Ne4 {[%clk 0:07:35.5]} 19...
Nf5 {[%clk 0:09:05.3]} 20. Rf3 {[%clk 0:07:14]} 20... Rbe8 {[%clk 0:09:00.2]}
21. Kh1 {[%clk 0:06:55.3]} 21... Nd4 {[%clk 0:08:38.4]} 22. Bxd4 {[%clk
0:06:54.5]} 22... exd4 {[%clk 0:08:39]} 23. Qc2 {[%clk 0:06:28.4]} 23... Re7
{[%clk 0:08:34.3]} 24. f5 {[%clk 0:06:14.5]} 24... gxf5 {[%clk 0:08:31.5]} 25.
Ng5 {[%clk 0:06:12.6]} 25... Rfe8 {[%clk 0:08:23.9]} 26. Rf2 {[%clk 0:06:06]}
26... Re5 {[%clk 0:08:03.1]} 27. Nh3 {[%clk 0:05:49.1]} 27... Bh6 {[%clk
0:07:54.6]} 28. Nf4 {[%clk 0:05:39.5]} 28... Bxf4 {[%clk 0:06:48.6]} 29. gxf4
{[%clk 0:05:39]} 29... Rxd5 {[%clk 0:06:48.4]} 30. Rg1+ {[%clk 0:05:36]} 30...
Kf8 {[%clk 0:06:48.4]} 31. a4 {[%clk 0:05:29.6]} 31... c6 {[%clk 0:06:31]} 32.
Qc4 {[%clk 0:05:07]} 32... Re6 {[%clk 0:06:02.9]} 33. Rfg2 {[%clk 0:05:00.1]}
33... Ke7 {[%clk 0:05:58.6]} 34. Qa2 {[%clk 0:03:47.7]} 34... Rc5 {[%clk
0:05:51.3]} 35. Rg8 {[%clk 0:03:40.9]} 35... cxb5 {[%clk 0:05:42.4]} 36. axb5
{[%clk 0:03:41.7]} 36... Qxb5 {[%clk 0:05:38.1]} 37. h3 {[%clk 0:03:20.1]} 37...
Qc6+ {[%clk 0:05:37.2]} 38. R1g2 {[%clk 0:02:33.8]} 38... a5 {[%clk 0:04:41.8]}
39. Kh2 {[%clk 0:02:30.2]} 39... a4 {[%clk 0:04:36]} 40. Ra8 {[%clk 0:02:20.5]}
40... Rc2 {[%clk 0:03:13.4]} 41. Qxa4 {[%clk 0:02:19.2]} 41... Qxa4 {[%clk
0:03:09.9]} 42. Rxa4 {[%clk 0:02:21.1]} 42... Rexe2 {[%clk 0:03:10.2]} 43. Rxe2+
{[%clk 0:02:21.8]} 43... Rxe2+ {[%clk 0:03:09.7]} 44. Kg1 {[%clk 0:02:22.7]}
44... Re3 {[%clk 0:03:09]} 45. Rxd4 {[%clk 0:02:23.3]} 45... Rxh3 {[%clk
0:03:09.1]} 46. Rb4 {[%clk 0:02:20]} 46... Rxd3 {[%clk 0:02:58.5]} 47. Rxb7+
{[%clk 0:02:20.7]} 47... Ke6 {[%clk 0:02:59]} 48. Kf2 {[%clk 0:02:21.7]} 48...
h4 {[%clk 0:02:53.9]} 49. Rb8 {[%clk 0:02:19.2]} 49... h3 {[%clk 0:02:53.8]} 50.
Rh8 {[%clk 0:02:19.5]} 50... Ra3 {[%clk 0:02:54.2]} 51. Rh5 {[%clk 0:02:15.3]}
51... h2 {[%clk 0:02:48.3]} 52. Kg2 {[%clk 0:02:11.7]} 52... Ra2+ {[%clk
0:02:46.5]} 53. Kh1 {[%clk 0:02:12.6]} 53... d5 {[%clk 0:02:34.2]} 54. Rh6+
{[%clk 0:02:12.2]} 54... Ke7 {[%clk 0:02:28.8]} 55. Re6+ {[%clk 0:02:12.2]}
55... Kd7 {[%clk 0:02:04.9]} 56. Rd6+ {[%clk 0:02:12]} 56... Kc7 {[%clk
0:02:05.6]} 57. Rc6+ {[%clk 0:02:13.2]} 57... Kb7 {[%clk 0:02:05.7]} 58. Rb6+
{[%clk 0:02:14.5]} 58... Ka7 {[%clk 0:02:05.6]} 59. Rb7+ {[%clk 0:02:15.8]}
59... Kxb7 {[%clk 0:02:05.9]} 1/2-1/2

[Event "GrandPrix_30.05"]
[Site "Chess.com"]
[Date "2020.05.30"]
[Round "8"]
[White "OK97"]
[Black "Hakob-Hakobyan-Arm"]
[Result "0-1"]
[WhiteElo "2293"]
[BlackElo "2213"]
[TimeControl "600+2"]
[EndTime "11:56:58 PDT"]
[Termination "Hakob-Hakobyan-Arm won on time"]

1. e4 {[%clk 0:10:01.9]} 1... Nc6 {[%clk 0:10:00.5]} 2. Nf3 {[%clk 0:09:48]}
2... d6 {[%clk 0:10:01.4]} 3. d4 {[%clk 0:09:48.2]} 3... Nf6 {[%clk 0:10:02.5]}
4. Nc3 {[%clk 0:09:44.5]} 4... g6 {[%clk 0:10:03.6]} 5. Be2 {[%clk 0:09:26.5]}
5... Bg7 {[%clk 0:10:04.2]} 6. O-O {[%clk 0:09:27.5]} 6... O-O {[%clk
0:10:05.1]} 7. Bg5 {[%clk 0:09:28.4]} 7... Bg4 {[%clk 0:10:04.2]} 8. d5 {[%clk
0:09:22.6]} 8... Nb8 {[%clk 0:10:05.2]} 9. a4 {[%clk 0:09:08.2]} 9... c6 {[%clk
0:10:05.6]} 10. a5 {[%clk 0:09:07.1]} 10... a6 {[%clk 0:09:27.9]} 11. Qd2 {[%clk
0:08:27.8]} 11... cxd5 {[%clk 0:09:25.4]} 12. exd5 {[%clk 0:08:27.2]} 12... Bxf3
{[%clk 0:09:23.2]} 13. Bxf3 {[%clk 0:08:27.6]} 13... Nbd7 {[%clk 0:09:24.4]} 14.
Na4 {[%clk 0:08:06.4]} 14... Rc8 {[%clk 0:09:21.2]} 15. g3 {[%clk 0:06:34.6]}
15... Ne5 {[%clk 0:09:09.2]} 16. Bg2 {[%clk 0:06:36]} 16... Nc4 {[%clk
0:09:10.7]} 17. Qb4 {[%clk 0:06:32]} 17... h6 {[%clk 0:08:19.5]} 18. Bf4 {[%clk
0:06:30.5]} 18... g5 {[%clk 0:08:19.7]} 19. Bc1 {[%clk 0:06:29.8]} 19... Nd7
{[%clk 0:07:58.7]} 20. Bh3 {[%clk 0:06:04.4]} 20... f5 {[%clk 0:07:21.8]} 21.
Qe1 {[%clk 0:05:26]} 21... g4 {[%clk 0:06:18.2]} 22. Bg2 {[%clk 0:05:25.4]}
22... Nde5 {[%clk 0:06:19.1]} 23. b3 {[%clk 0:03:37.5]} 23... b5 {[%clk
0:04:47.9]} 24. axb6 {[%clk 0:03:24.3]} 24... Nxb6 {[%clk 0:04:48.9]} 25. Nxb6
{[%clk 0:03:15.2]} 25... Qxb6 {[%clk 0:04:50.8]} 26. Be3 {[%clk 0:03:01.5]}
26... Qb5 {[%clk 0:04:22]} 27. Ra5 {[%clk 0:02:58.7]} 27... Qe8 {[%clk
0:04:22.3]} 28. c4 {[%clk 0:00:48.3]} 28... Nf3+ {[%clk 0:04:22.2]} 29. Bxf3
{[%clk 0:00:49.3]} 29... gxf3 {[%clk 0:04:24.1]} 30. Bf4 {[%clk 0:00:35.7]}
30... Qh5 {[%clk 0:03:43.4]} 31. Qd1 {[%clk 0:00:36.9]} 31... Be5 {[%clk
0:03:35]} 32. Bxe5 {[%clk 0:00:28.7]} 32... dxe5 {[%clk 0:03:36.9]} 33. d6
{[%clk 0:00:30.1]} 33... e4 {[%clk 0:03:24.9]} 34. dxe7 {[%clk 0:00:21.7]} 34...
Qh3 {[%clk 0:02:48.8]} 35. exf8=Q+ {[%clk 0:00:20]} 35... Rxf8 {[%clk
0:02:50.7]} 36. Qd5+ {[%clk 0:00:13.7]} 36... Rf7 {[%clk 0:02:48.1]} 37. Qd8+
{[%clk 0:00:08.9]} 37... Kh7 {[%clk 0:02:47.9]} 0-1

[Event "GrandPrix_30.05"]
[Site "Chess.com"]
[Date "2020.05.30"]
[Round "8"]
[White "Forking_U"]
[Black "zuagroasta"]
[Result "1/2-1/2"]
[WhiteElo "2082"]
[BlackElo "1958"]
[TimeControl "600+2"]
[EndTime "11:56:59 PDT"]
[Termination "Game drawn by agreement"]

1. Nf3 {[%clk 0:10:01.9]} 1... d5 {[%clk 0:09:57]} 2. g3 {[%clk 0:10:02.3]} 2...
g6 {[%clk 0:09:55.3]} 3. c4 {[%clk 0:09:59.9]} 3... e6 {[%clk 0:09:54.8]} 4. Bg2
{[%clk 0:09:51]} 4... Bg7 {[%clk 0:09:54.5]} 5. O-O {[%clk 0:09:52.1]} 5... Ne7
{[%clk 0:09:54.5]} 6. d4 {[%clk 0:09:49.1]} 6... O-O {[%clk 0:09:54.6]} 7. Qc2
{[%clk 0:09:25.7]} 7... Nbc6 {[%clk 0:09:44]} 8. Rd1 {[%clk 0:09:18.3]} 8... Nf5
{[%clk 0:08:38.9]} 9. e3 {[%clk 0:07:38.6]} 9... a5 {[%clk 0:08:38.1]} 10. Nc3
{[%clk 0:07:29.3]} 10... dxc4 {[%clk 0:07:58.6]} 11. Na4 {[%clk 0:07:22.2]}
11... Nb4 {[%clk 0:07:47.2]} 12. Qe2 {[%clk 0:07:02]} 12... Nd3 {[%clk
0:05:54.8]} 13. Ne5 {[%clk 0:06:41.1]} 13... Nxe5 {[%clk 0:05:27.3]} 14. dxe5
{[%clk 0:06:40.8]} 14... Qe8 {[%clk 0:05:16]} 15. Qxc4 {[%clk 0:05:43.1]} 15...
Bxe5 {[%clk 0:05:11.4]} 16. Nc5 {[%clk 0:04:34.4]} 16... Nd6 {[%clk 0:05:07.3]}
17. Qc2 {[%clk 0:04:23]} 17... Qb5 {[%clk 0:03:05.6]} 18. Nd3 {[%clk 0:04:00.7]}
18... Bf6 {[%clk 0:03:04.8]} 19. Qxc7 {[%clk 0:03:50.2]} 19... Ra6 {[%clk
0:03:03.4]} 20. Qc5 {[%clk 0:03:11.3]} 20... Bd7 {[%clk 0:02:53.9]} 21. Qxb5
{[%clk 0:02:39.4]} 21... Bxb5 {[%clk 0:02:51.1]} 22. Nc5 {[%clk 0:02:40.6]}
22... Rb6 {[%clk 0:02:37.7]} 23. a4 {[%clk 0:02:03.2]} 23... Rc8 {[%clk
0:02:21.9]} 24. axb5 {[%clk 0:01:08.4]} 24... Rxc5 {[%clk 0:02:21.6]} 25. Rxa5
{[%clk 0:01:09.5]} 25... Rbxb5 {[%clk 0:01:53.5]} 26. Rxb5 {[%clk 0:00:57.3]}
26... Nxb5 {[%clk 0:01:53.5]} 27. Bxb7 {[%clk 0:00:58.1]} 27... Rc2 {[%clk
0:01:51.9]} 28. Ba6 {[%clk 0:00:37.2]} 28... Bxb2 {[%clk 0:01:46.5]} 29. Bxb5
{[%clk 0:00:18.5]} 29... Rxc1 {[%clk 0:01:45.5]} 30. Rxc1 {[%clk 0:00:19.4]}
30... Bxc1 {[%clk 0:01:46.1]} 1/2-1/2

[Event "GrandPrix_30.05"]
[Site "Chess.com"]
[Date "2020.05.30"]
[Round "8"]
[White "weplaychess09"]
[Black "N4700000"]
[Result "0-1"]
[WhiteElo "2066"]
[BlackElo "2216"]
[TimeControl "600+2"]
[EndTime "11:57:16 PDT"]
[Termination "N4700000 won by checkmate"]

1. d4 {[%clk 0:10:01.9]} 1... Nf6 {[%clk 0:09:40]} 2. c4 {[%clk 0:10:02.3]} 2...
g6 {[%clk 0:09:41.5]} 3. Nc3 {[%clk 0:10:02.7]} 3... Bg7 {[%clk 0:09:43]} 4. e4
{[%clk 0:10:02.9]} 4... O-O {[%clk 0:09:44.6]} 5. Nf3 {[%clk 0:10:03.7]} 5... d6
{[%clk 0:09:46]} 6. Be2 {[%clk 0:10:04.8]} 6... e5 {[%clk 0:09:46.6]} 7. d5
{[%clk 0:10:05.7]} 7... a5 {[%clk 0:09:44.5]} 8. Bg5 {[%clk 0:10:05.7]} 8... Na6
{[%clk 0:09:42.6]} 9. Nd2 {[%clk 0:10:02.7]} 9... h6 {[%clk 0:09:41.8]} 10. Bh4
{[%clk 0:10:03.3]} 10... Qe8 {[%clk 0:09:41.9]} 11. O-O {[%clk 0:10:01.8]} 11...
Bd7 {[%clk 0:09:32.8]} 12. b3 {[%clk 0:09:58.8]} 12... Nh7 {[%clk 0:09:32.7]}
13. a3 {[%clk 0:09:59.4]} 13... f5 {[%clk 0:09:31.9]} 14. f3 {[%clk 0:09:56.5]}
14... Bf6 {[%clk 0:09:25.5]} 15. Bf2 {[%clk 0:09:49.2]} 15... Qe7 {[%clk
0:09:24]} 16. Rb1 {[%clk 0:09:47.9]} 16... Bh4 {[%clk 0:09:11.7]} 17. b4 {[%clk
0:09:46.9]} 17... Bxf2+ {[%clk 0:09:10.9]} 18. Rxf2 {[%clk 0:09:47.5]} 18...
axb4 {[%clk 0:09:10]} 19. axb4 {[%clk 0:09:48]} 19... Qg5 {[%clk 0:09:07]} 20.
Nf1 {[%clk 0:09:45.4]} 20... Nf6 {[%clk 0:09:04]} 21. Qd2 {[%clk 0:09:32.8]}
21... f4 {[%clk 0:08:50.8]} 22. Qc2 {[%clk 0:08:54.9]} 22... Qh4 {[%clk
0:08:47.1]} 23. g3 {[%clk 0:08:30.2]} 23... Qh5 {[%clk 0:08:45.7]} 24. g4 {[%clk
0:08:13.9]} 24... Qh4 {[%clk 0:08:45.5]} 25. Rg2 {[%clk 0:08:14.9]} 25... h5
{[%clk 0:08:42.5]} 26. gxh5 {[%clk 0:08:13.9]} 26... Nxh5 {[%clk 0:08:36.4]} 27.
Bd3 {[%clk 0:06:06.3]} 27... Bh3 {[%clk 0:08:32.4]} 28. Rd2 {[%clk 0:05:48.6]}
28... g5 {[%clk 0:08:24.5]} 29. Qd1 {[%clk 0:05:35.6]} 29... Rf7 {[%clk
0:08:10.5]} 30. Be2 {[%clk 0:04:32.9]} 30... Rg7 {[%clk 0:07:43.9]} 31. Qe1
{[%clk 0:04:25.8]} 31... Nxb4 {[%clk 0:07:21.2]} 32. Rdb2 {[%clk 0:04:16.6]}
32... Na6 {[%clk 0:07:11.9]} 33. Rxb7 {[%clk 0:04:11.5]} 33... Nc5 {[%clk
0:07:08]} 34. Rb8+ {[%clk 0:04:03.8]} 34... Rxb8 {[%clk 0:07:07.5]} 35. Rxb8+
{[%clk 0:04:05.7]} 35... Kh7 {[%clk 0:07:08.5]} 36. Qf2 {[%clk 0:03:49.2]} 36...
Nf6 {[%clk 0:06:44.7]} 37. Qxh4+ {[%clk 0:03:20.1]} 37... gxh4+ {[%clk
0:06:44.8]} 38. Kf2 {[%clk 0:03:21.2]} 38... Nfd7 {[%clk 0:06:10.4]} 39. Ra8
{[%clk 0:03:06.7]} 39... Nb6 {[%clk 0:06:06.7]} 40. Ra7 {[%clk 0:03:04]} 40...
Nb3 {[%clk 0:06:04.1]} 41. Nb5 {[%clk 0:02:56.9]} 41... Rg2+ {[%clk 0:05:58.6]}
42. Ke1 {[%clk 0:02:57.2]} 42... Nc1 {[%clk 0:05:59.3]} 43. Rxc7+ {[%clk
0:02:50.6]} 43... Kh6 {[%clk 0:05:59.8]} 44. c5 {[%clk 0:02:19.7]} 44... Rxe2+
{[%clk 0:05:51]} 45. Kd1 {[%clk 0:02:20.3]} 45... dxc5 {[%clk 0:05:44.1]} 46.
Rc6+ {[%clk 0:02:12]} 46... Kg5 {[%clk 0:05:44.3]} 47. Rxb6 {[%clk 0:02:13.1]}
47... Bxf1 {[%clk 0:05:41.2]} 48. Kxc1 {[%clk 0:02:14.1]} 48... Rxh2 {[%clk
0:05:16.3]} 49. d6 {[%clk 0:02:05.7]} 49... Bxb5 {[%clk 0:05:12.6]} 50. Rxb5
{[%clk 0:02:05.8]} 50... Kf6 {[%clk 0:05:13.9]} 51. d7 {[%clk 0:01:54.2]} 51...
Ke7 {[%clk 0:05:13.2]} 52. Rxc5 {[%clk 0:01:55.5]} 52... Kxd7 {[%clk 0:05:12.9]}
53. Rxe5 {[%clk 0:01:56.7]} 53... h3 {[%clk 0:05:04.7]} 54. Rh5 {[%clk
0:01:38.8]} 54... Ke6 {[%clk 0:05:01.2]} 55. Kb1 {[%clk 0:01:35.2]} 55... Kf6
{[%clk 0:04:59.6]} 56. Rf5+ {[%clk 0:01:11.1]} 56... Kg6 {[%clk 0:04:51.7]} 57.
Rxf4 {[%clk 0:01:10.8]} 57... Rg2 {[%clk 0:04:46.5]} 58. Rh4 {[%clk 0:00:37.8]}
58... h2 {[%clk 0:04:45.6]} 59. Kc1 {[%clk 0:00:37.1]} 59... Rg1+ {[%clk
0:04:44.9]} 60. Kd2 {[%clk 0:00:38.6]} 60... h1=Q {[%clk 0:04:45.7]} 61. Rxh1
{[%clk 0:00:39.3]} 61... Rxh1 {[%clk 0:04:47.6]} 62. Ke3 {[%clk 0:00:40]} 62...
Kf6 {[%clk 0:04:47.2]} 63. f4 {[%clk 0:00:41]} 63... Rh3+ {[%clk 0:04:42]} 64.
Ke2 {[%clk 0:00:41.2]} 64... Ke6 {[%clk 0:04:41.5]} 65. Kf2 {[%clk 0:00:42.2]}
65... Ra3 {[%clk 0:04:41.5]} 66. Ke2 {[%clk 0:00:43.2]} 66... Kd6 {[%clk
0:04:42.3]} 67. Kf2 {[%clk 0:00:43.7]} 67... Kc5 {[%clk 0:04:43.2]} 68. f5
{[%clk 0:00:44.8]} 68... Kd4 {[%clk 0:04:42.9]} 69. f6 {[%clk 0:00:46.1]} 69...
Kxe4 {[%clk 0:04:41.6]} 70. f7 {[%clk 0:00:46.4]} 70... Rf3+ {[%clk 0:04:41.9]}
71. Ke2 {[%clk 0:00:46.6]} 71... Rxf7 {[%clk 0:04:42.8]} 72. Kd2 {[%clk
0:00:46.1]} 72... Rc7 {[%clk 0:04:41.1]} 73. Ke2 {[%clk 0:00:47.1]} 73... Rc2+
{[%clk 0:04:40.4]} 74. Kd1 {[%clk 0:00:48.6]} 74... Rh2 {[%clk 0:04:39.9]} 75.
Ke1 {[%clk 0:00:49.8]} 75... Kd3 {[%clk 0:04:37.3]} 76. Kf1 {[%clk 0:00:50.6]}
76... Ke3 {[%clk 0:04:36.8]} 77. Kg1 {[%clk 0:00:51.7]} 77... Ra2 {[%clk
0:04:38]} 78. Kf1 {[%clk 0:00:52.8]} 78... Rb2 {[%clk 0:04:39]} 79. Kg1 {[%clk
0:00:50.5]} 79... Kf3 {[%clk 0:04:40.1]} 80. Kh1 {[%clk 0:00:51.6]} 80... Kg3
{[%clk 0:04:40.5]} 81. Kg1 {[%clk 0:00:53.5]} 81... Rb1# {[%clk 0:04:40.8]} 0-1

[Event "GrandPrix_30.05"]
[Site "Chess.com"]
[Date "2020.05.30"]
[Round "8"]
[White "Malysch"]
[Black "Korchmar_Vasiliy"]
[Result "1/2-1/2"]
[WhiteElo "2302"]
[BlackElo "2148"]
[TimeControl "600+2"]
[EndTime "11:57:23 PDT"]
[Termination "Game drawn by repetition"]

1. d4 {[%clk 0:10:01.9]} 1... Nf6 {[%clk 0:09:59.8]} 2. c4 {[%clk 0:10:02.6]}
2... e6 {[%clk 0:10:00.7]} 3. g3 {[%clk 0:10:03.1]} 3... d5 {[%clk 0:10:01.5]}
4. Bg2 {[%clk 0:10:03.7]} 4... Bb4+ {[%clk 0:09:51]} 5. Nd2 {[%clk 0:10:01]}
5... O-O {[%clk 0:09:47.8]} 6. Nf3 {[%clk 0:10:00.7]} 6... dxc4 {[%clk
0:09:44.1]} 7. Qc2 {[%clk 0:10:00.8]} 7... a5 {[%clk 0:09:43]} 8. O-O {[%clk
0:09:49.9]} 8... b5 {[%clk 0:09:32]} 9. a4 {[%clk 0:09:49.8]} 9... c6 {[%clk
0:09:28.6]} 10. b3 {[%clk 0:09:37.9]} 10... cxb3 {[%clk 0:08:32.7]} 11. Nxb3
{[%clk 0:09:39.8]} 11... bxa4 {[%clk 0:08:28.9]} 12. Rxa4 {[%clk 0:09:28.2]}
12... Ba6 {[%clk 0:07:46.7]} 13. Rd1 {[%clk 0:08:52.7]} 13... Nbd7 {[%clk
0:07:31.2]} 14. Ne5 {[%clk 0:08:28.4]} 14... Bb5 {[%clk 0:06:30.7]} 15. Ra2
{[%clk 0:06:07.8]} 15... Nd5 {[%clk 0:06:30.7]} 16. Nxc6 {[%clk 0:05:06.1]}
16... Bxc6 {[%clk 0:06:11.3]} 17. Qxc6 {[%clk 0:05:08]} 17... Rc8 {[%clk
0:06:12.4]} 18. Bxd5 {[%clk 0:04:49.2]} 18... Rxc6 {[%clk 0:05:29.6]} 19. Bxc6
{[%clk 0:04:51.1]} 19... Nf6 {[%clk 0:04:26.3]} 20. Bd2 {[%clk 0:04:39.5]} 20...
Qb6 {[%clk 0:03:56.3]} 21. Bf3 {[%clk 0:03:56]} 21... Nd5 {[%clk 0:02:58.4]} 22.
Nxa5 {[%clk 0:03:40.6]} 22... Bxd2 {[%clk 0:02:59]} 23. Rdxd2 {[%clk 0:03:36.6]}
23... Ra8 {[%clk 0:02:28.5]} 24. Nb3 {[%clk 0:03:00.3]} 24... Rxa2 {[%clk
0:02:08.8]} 25. Rxa2 {[%clk 0:03:02.2]} 25... g5 {[%clk 0:02:05.3]} 26. Ra8+
{[%clk 0:02:37.5]} 26... Kg7 {[%clk 0:02:06.2]} 27. Nc5 {[%clk 0:02:34.7]} 27...
Qb4 {[%clk 0:01:19.1]} 28. Ra7 {[%clk 0:02:14.2]} 28... Qe1+ {[%clk 0:00:51.4]}
29. Kg2 {[%clk 0:02:14.2]} 29... Nc3 {[%clk 0:00:48.7]} 30. Nxe6+ {[%clk
0:02:02.6]} 30... Kg6 {[%clk 0:00:36.4]} 31. Nf8+ {[%clk 0:01:53.8]} 31... Kg7
{[%clk 0:00:33]} 32. Ne6+ {[%clk 0:01:48.4]} 32... Kg6 {[%clk 0:00:32.9]} 33.
Nf8+ {[%clk 0:01:39.1]} 33... Kg7 {[%clk 0:00:23.6]} 34. Ne6+ {[%clk 0:01:34.1]}
1/2-1/2